fUST/lending_fUST_20240125
["ID","MTS","AMOUNT","RATE_DAILY","PERIOD"]
[312757190,1706197835463,-5000.0,0.00029911,5]
[312757191,1706197835473,-5000.0,0.00029911,5]
[312757192,1706197835482,-5000.0,0.00029911,5]
[312757193,1706197835494,-5000.0,0.00029911,5]
[312757194,1706197835504,-3075.5186485,0.00029911,3]
[312757195,1706197835513,-244.06028653,0.0003,2]
[312757196,1706197835522,-1000.0,0.0003,4]
[312757197,1706197835531,-2372.54255137,0.0003,2]
[312757198,1706197835540,-139264.62830083,0.0003,4]
[312757199,1706197835550,-195.4790082,0.0003,2]
[312757200,1706197835559,-688.78830185,0.0003,4]
[312757201,1706197835569,-155.00310006,0.0003,4]
[312757202,1706197835579,-405.0,0.0003,2]
[312757203,1706197835588,-155.0,0.0003,4]
[312757204,1706197835597,-5000.0,0.00030029,5]
[312757205,1706197835607,-5000.0,0.00030029,5]
[312757206,1706197835616,-163.08892,0.00030137,2]
[312757207,1706197835625,-216.099426,0.00030137,2]
[312757208,1706197835635,-157.894736,0.00030137,2]
[312757209,1706197835644,-5000.0,0.00030213,7]
[312757210,1706197835653,-5000.0,0.00030213,7]
[312757211,1706197835663,-155.16244617,0.00030249,2]
[312757212,1706197835672,-280.0,0.0003025,15]
[312757213,1706197835681,-155.0,0.0003027,2]
[312757214,1706197835690,-5000.0,0.0003029,7]
[312757215,1706197835699,-5000.0,0.0003029,7]
[312757216,1706197835709,-8696.43813929,0.0003029,2]
[312757217,1706197835719,-5000.0,0.0003029,7]
[312757218,1706197835728,-5000.0,0.0003029,7]
[312757219,1706197835739,-5000.0,0.0003029,7]
[312757220,1706197835748,-5000.0,0.0003029,7]
[312757221,1706197835758,-4523.77420607,0.0003029,3]
[312757222,1706197835768,-620.66096741,0.00030742,2]
[312757223,1706197835778,-157.894736,0.00030746,2]
[312757224,1706197835787,-233.62993,0.000308,2]
[312757225,1706197835798,-5000.0,0.00030817,7]
[312757226,1706197835808,-163.08892,0.0003092,2]
[312757227,1706197835817,-216.099426,0.0003092,2]
[312757228,1706197835827,-326.5809704,0.00031,6]
[312757229,1706197835836,-200.0,0.00031,4]
[312757230,1706197835846,-151.0,0.00031223,2]
[312757231,1706197835855,-150.0,0.00031249,2]
[312757232,1706197835865,-5000.0,0.00031294,7]
[312757233,1706197835874,-5000.0,0.00031294,7]
[312757234,1706197835883,-5000.0,0.00031294,7]
[312757235,1706197835893,-157.894736,0.00031355,2]
[312757236,1706197835902,-5000.0,0.00031616,7]
[312757237,1706197835912,-5000.0,0.00031616,7]
[312757238,1706197835921,-5000.0,0.0003162,7]
[312757239,1706197835931,-155.0,0.0003164,2]
[312757240,1706197835940,-50936.44278261,0.00031642,3]
[312757241,1706197835949,-5716.06790161,0.00031683,4]
[312757242,1706197835959,-243.76580051,0.00031683,4]
[312757243,1706197835968,-5382.01349715,0.00031683,4]
[312757244,1706197835977,-24934.53838043,0.00031683,4]
[312757245,1706197835987,-7766.26922979,0.00031683,2]
[312757246,1706197835998,-323.23544643,0.00031685,4]
[312757247,1706197836006,-182.14661417,0.00031685,4]
[312757248,1706197836015,-311.44875149,0.00031685,4]
[312757249,1706197836025,-300.0,0.00031686,4]
[312757250,1706197836034,-2454.66425031,0.00031686,2]
[312757251,1706197836043,-2801.88705417,0.00031686,4]
[312757252,1706197836052,-687.23319626,0.00031686,4]
[312757253,1706197836061,-407.93473902,0.00031686,4]
[312757254,1706197836071,-6129.67718162,0.00031686,4]
[312757255,1706197836080,-1027.07329031,0.00031686,2]
[312757256,1706197836091,-155.00310006,0.00031686,7]
[312757257,1706197836101,-351.67065141,0.00031686,2]
[312757258,1706197836193,-375.96014132,0.00031686,4]
[312757259,1706197836203,-454.70291986,0.00031686,4]
[312757260,1706197836212,-163.08892,0.00031703,2]
[312757261,1706197836221,-216.099426,0.00031703,2]
[312757262,1706197836230,-229.65600878,0.00031795,4]
[312757263,1706197836239,-298.26002398,0.00031798,4]
[312757264,1706197836249,-8533.93109689,0.00031799,4]
[312757265,1706197836258,-532.88130715,0.00031799,2]
[312757266,1706197836272,-500.0,0.00031799,7]
[312757267,1706197836281,-500.0,0.00031799,7]
[312757268,1706197836290,-500.0,0.00031799,7]
[312757269,1706197836299,-437.95811671,0.00031799,7]
[312757270,1706197836309,-500.0,0.00031799,7]
[312757271,1706197836318,-500.0,0.00031799,7]
[312757272,1706197836327,-500.0,0.00031799,7]
[312757273,1706197836336,-500.0,0.00031799,7]
[312757274,1706197836346,-500.0,0.00031799,7]
[312757275,1706197836357,-500.0,0.00031799,7]
[312757276,1706197836367,-500.0,0.00031799,7]
[312757277,1706197836377,-500.0,0.00031799,7]
[312757278,1706197836386,-403.71233621,0.00031799,7]
[312757279,1706197836396,-500.0,0.00031799,7]
[312757280,1706197836405,-528.41351193,0.00031799,7]
[312757281,1706197836414,-178.217096,0.00031799,7]
[312757282,1706197836423,-500.0,0.00031799,7]
[312757283,1706197836432,-500.0,0.00031799,7]
[312757284,1706197836442,-500.0,0.00031799,7]
[312757285,1706197836452,-500.0,0.00031799,7]
[312757286,1706197836462,-500.0,0.00031799,7]
[312757287,1706197836471,-500.0,0.00031799,7]
[312757288,1706197836480,-500.0,0.00031799,7]
[312757289,1706197836490,-431.56275633,0.00031799,7]
[312757290,1706197836499,-500.0,0.00031799,7]
[312757291,1706197836507,-500.0,0.00031799,7]
[312757292,1706197836516,-500.0,0.00031799,7]
[312757293,1706197836525,-500.0,0.00031799,7]
[312757294,1706197836535,-544.45830782,0.00031799,7]
[312757295,1706197836544,-500.0,0.00031799,7]
[312757296,1706197836553,-500.0,0.00031799,7]
[312757297,1706197836565,-548.7793946,0.00031799,7]
[312757298,1706197836574,-318.20063645,0.000318,2]
[312757299,1706197836584,-576.0,0.000318,2]
[312757300,1706197836594,-151.0,0.000318,2]
[312757301,1706197836604,-195.084018,0.000318,2]
[312757302,1706197836613,-8991.327783,0.000318,2]
[312757303,1706197836622,-8991.327783,0.000318,2]
[312757304,1706197836631,-691346.46285021,0.000318,2]
[312757305,1706197836641,-50000.0,0.00031917,3]
[312757306,1706197836650,-5000.0,0.00031945,7]
[312757307,1706197836659,-5000.0,0.00031945,7]
[312757308,1706197836668,-157.894736,0.00031963,2]
[312757309,1706197836678,-9502.11081765,0.00032,10]
[312757310,1706197836687,-3137.0499637,0.00032,2]
[312757311,1706197836696,-245.402279,0.00032,5]
[312757312,1706197836705,-150.0,0.00032249,2]
[312757313,1706197836714,-620.03304837,0.00032279,2]
[312757314,1706197836724,-21382.11159729,0.00032296,2]
[312757315,1706197836733,-5000.0,0.00032296,7]
[312757316,1706197836743,-5000.0,0.00032296,7]
[312757317,1706197836752,-5000.0,0.00032386,7]
[312757318,1706197836761,-245.402279,0.000324,5]
[312757319,1706197836771,-163.08892,0.00032485,2]
[312757320,1706197836780,-216.099426,0.00032485,2]
[312757321,1706197836790,-1274.93866513,0.00032489,2]
[312757322,1706197836799,-156.31681549,0.00032497,2]
[312757323,1706197836808,-10.59489455,0.00032499,4]
[312757324,1706197836817,-500.0,0.00032499,2]
[312757325,1706197836826,-855.1756,0.000325,2]
[312757326,1706197836835,-5000.0,0.00032536,7]
[312757327,1706197836845,-167.15663199,0.00032555,6]
[312757328,1706197836854,-157.894736,0.00032572,2]
[312757329,1706197836863,-50000.0,0.00032583,3]
[312757330,1706197836872,-5000.0,0.00032598,7]
[312757331,1706197836882,-5000.0,0.00032658,7]
[312757332,1706197836891,-5000.0,0.00032658,7]
[312757333,1706197836900,-5000.0,0.00032658,7]
[312757334,1706197836910,-151.0,0.00032658,2]
[312757335,1706197836919,-683.46048677,0.00032706,4]
[312757336,1706197836928,-555.44587219,0.00032708,4]
[312757337,1706197836938,-309.90704028,0.00032708,2]
[312757338,1706197836947,-272.59010519,0.00032708,4]
[312757339,1706197836956,-283.58279837,0.0003271,4]
[312757340,1706197836966,-155.17369071,0.00032712,4]
[312757341,1706197836975,-157.64914444,0.00032712,4]
[312757342,1706197836984,-2682.28058738,0.00032712,4]
[312757343,1706197836994,-166.05500787,0.00032712,4]
[312757344,1706197837003,-978.72522112,0.00032712,4]
[312757345,1706197837013,-8991.327783,0.00032712,2]
[312757346,1706197837023,-8991.327783,0.00032712,2]
[312757347,1706197837032,-155.03070341,0.00032713,4]
[312757348,1706197837041,-4865.5098759,0.00032713,4]
[312757349,1706197837049,-20078.9928924,0.00032877,2]
[312757350,1706197837061,-263.72063021,0.00032943,4]
[312757351,1706197837070,-932.82009383,0.00032944,4]
[312757352,1706197837079,-32630.78087586,0.00033,10]
[312757353,1706197837088,-276.02916029,0.00033,2]
[312757354,1706197837097,-150.0,0.00033,4]
[312757355,1706197837106,-155.00465014,0.00033,4]
[312757356,1706197837115,-2849.23045787,0.00033,2]
[312757357,1706197837124,-2028.23697359,0.00033,2]
[312757358,1706197837133,-405.0,0.00033,2]
[312757359,1706197837143,-155.0,0.0003301,2]
[312757360,1706197837152,-157.894736,0.00033181,2]
[312757361,1706197837161,-163.08892,0.00033268,2]
[312757362,1706197837170,-216.099426,0.00033268,2]
[312757363,1706197837180,-391.0,0.00033275,15]
[312757364,1706197837189,-157.894736,0.0003379,2]
[312757365,1706197837198,-619.99999999,0.00033809,2]
[312757366,1706197837207,-620.00165242,0.00033893,2]
[312757367,1706197837216,-51749.84810145,0.00034,2]
[312757368,1706197837225,-151.0,0.00034,2]
[312757369,1706197837235,-163.08892,0.00034051,2]
[312757370,1706197837245,-216.099426,0.00034051,2]
[312757371,1706197837254,-8392.09761733,0.0003413,2]
[312757372,1706197837264,-150.0,0.00034223,2]
[312757373,1706197837276,-50000.0,0.00034225,7]
[312757374,1706197837285,-565.589382,0.00034225,2]
[312757375,1706197837294,-565.589382,0.00034225,2]
[312757376,1706197837304,-151.0,0.00034225,2]
[312757377,1706197837314,-831.24253,0.00034225,2]
[312757378,1706197837324,-831.24253,0.00034225,2]
[312757379,1706197837333,-246.5520124,0.00034247,2]
[312757380,1706197837342,-151.0,0.00034369,2]
[312757381,1706197837353,-393.719375,0.00034369,2]
[312757382,1706197837363,-393.719375,0.00034369,2]
[312757383,1706197837372,-155.0,0.0003438,2]
[312757384,1706197837381,-157.894736,0.00034399,2]
[312757385,1706197837391,-163.08892,0.00034834,2]
[312757386,1706197837400,-216.099426,0.00034834,2]
[312757387,1706197837409,-657.40715545,0.00035,7]
[312757388,1706197837419,-564.16006176,0.00035,2]
[312757389,1706197837428,-2359.3181247,0.00035,2]
[312757390,1706197837437,-155.38627739,0.00035,2]
[312757391,1706197837446,-592.34900571,0.00035,2]
[312757392,1706197837456,-48717.90607386,0.00035,2]
[312757393,1706197837466,-3927.87882193,0.00035,2]
[312757394,1706197837475,-10172.98608814,0.00035,2]
[312757395,1706197837485,-561.1529857,0.00035,2]
[312757396,1706197837495,-184.66976843,0.00035,2]
[312757397,1706197837504,-711.926868,0.00035,7]
[312757398,1706197837513,-151.0,0.00035,2]
[312757399,1706197837522,-8991.327783,0.00035,2]
[312757400,1706197837531,-8991.327783,0.00035,2]
[312757401,1706197837540,-157.894736,0.00035008,2]
[312757402,1706197837550,-50000.0,0.00035339,7]
[312757403,1706197837559,-620.00008262,0.00035587,2]
[312757404,1706197837568,-151.0,0.00035616,2]
[312757405,1706197837579,-607.51,0.00035616,2]
[312757406,1706197837588,-607.51,0.00035616,2]
[312757407,1706197837598,-607.51,0.00035616,2]
[312757408,1706197837607,-607.51,0.00035616,2]
[312757409,1706197837616,-607.51,0.00035616,2]
[312757410,1706197837625,-607.51,0.00035616,2]
[312757411,1706197837637,-607.51,0.00035616,2]
[312757412,1706197837647,-607.51,0.00035616,2]
[312757413,1706197837656,-607.51,0.00035616,2]
[312757414,1706197837665,-607.51,0.00035616,2]
[312757415,1706197837674,-607.51,0.00035616,2]
[312757416,1706197837683,-607.51,0.00035616,2]
[312757417,1706197837692,-607.51,0.00035616,2]
[312757418,1706197837703,-607.51,0.00035616,2]
[312757419,1706197837711,-607.51,0.00035616,2]
[312757420,1706197837721,-607.51,0.00035616,2]
[312757421,1706197837730,-607.51,0.00035616,2]
[312757422,1706197837741,-607.51,0.00035616,2]
[312757423,1706197837750,-607.51,0.00035616,2]
[312757424,1706197837760,-607.51,0.00035616,2]
[312757425,1706197837769,-607.51,0.00035616,2]
[312757426,1706197837778,-607.51,0.00035616,2]
[312757427,1706197837787,-607.51,0.00035616,2]
[312757428,1706197837796,-607.6995289,0.00035616,2]
[312757429,1706197837808,-163.08892,0.00035616,2]
[312757430,1706197837821,-216.099426,0.00035616,2]
[312757431,1706197837832,-157.894736,0.00035616,2]
[312757432,1706197837841,-155.0,0.0003575,2]
[312757433,1706197837853,-1000.0,0.0003587,10]
[312757434,1706197837863,-50000.0,0.00035962,7]
[312757435,1706197837874,-154.84515485,0.00036,4]
[312757436,1706197837883,-157.894736,0.00036225,2]
[312757437,1706197837963,-151.0,0.00036323,2]
[312757438,1706197837973,-393.719375,0.00036323,2]
[312757439,1706197837982,-393.719375,0.00036323,2]
[312757440,1706197837993,-163.08892,0.00036399,2]
[312757441,1706197838001,-216.099426,0.00036399,2]
[312757442,1706197838010,-565.589382,0.00036482,2]
[312757443,1706197838020,-565.589382,0.00036482,2]
[312757444,1706197838029,-151.0,0.00036482,2]
[312757445,1706197838038,-831.24253,0.00036482,2]
[312757446,1706197838047,-831.24253,0.00036482,2]
[312757447,1706197838056,-200.0,0.00036602,15]
[312757448,1706197838066,-348.0,0.00036602,15]
[312757449,1706197838080,-157.894736,0.00036834,2]
[312757450,1706197838089,-5000.0,0.00037066,7]
[312757451,1706197838098,-5000.0,0.00037074,7]
[312757452,1706197838108,-155.0,0.0003712,2]
[312757453,1706197838117,-1751.98385727,0.0003715,5]
[312757454,1706197838126,-5000.0,0.00037163,7]
[312757455,1706197838136,-163.08892,0.00037182,2]
[312757456,1706197838145,-216.099426,0.00037182,2]
[312757457,1706197838153,-150.0,0.00037223,2]
[312757458,1706197838162,-620.00000413,0.00037367,2]
[312757459,1706197838172,-157.894736,0.00037443,2]
[312757460,1706197838182,-9495.0,0.00037863,30]
[312757461,1706197838198,-163.08892,0.00037965,2]
[312757462,1706197838207,-216.099426,0.00037965,2]
[312757463,1706197838216,-777.0,0.00038,4]
[312757464,1706197838225,-165.0,0.00038,2]
[312757465,1706197838235,-157.894736,0.00038052,2]
[312757466,1706197838245,-155.0,0.0003849,2]
[312757467,1706197838254,-157.894736,0.0003866,2]
[312757468,1706197838264,-163.08892,0.00038747,2]
[312757469,1706197838274,-216.099426,0.00038747,2]
[312757470,1706197838284,-150.1,0.00039212,2]
[312757471,1706197838293,-620.00000021,0.00039235,2]
[312757472,1706197838303,-157.894736,0.00039269,2]
[312757473,1706197838313,-1000.0,0.00039449,10]
[312757474,1706197838322,-1000.0,0.00039449,10]
[312757475,1706197838332,-1000.0,0.00039449,10]
[312757476,1706197838341,-163.08892,0.0003953,2]
[312757477,1706197838351,-216.099426,0.0003953,2]
[312757478,1706197838360,-166.0,0.0003969,14]
[312757479,1706197838370,-5000.0,0.00039849,7]
[312757480,1706197838379,-155.0,0.0003986,2]
[312757481,1706197838389,-157.894736,0.00039878,2]
[312757482,1706197838399,-3043.42869512,0.00039919,10]
[312757483,1706197838408,-5000.0,0.00039975,7]
[312757484,1706197838417,-69999.1999992,0.0004,2]
[312757485,1706197838426,-2578.0000002,0.0004,2]
[312757486,1706197838436,-1011.57393685,0.0004,60]
[312757487,1706197838446,-158.06676767,0.0004,7]
[312757488,1706197838456,-2875.0,0.0004,30]
[312757489,1706197838465,-500.0,0.0004,15]
[312757490,1706197838475,-151.0,0.0004,2]
[312757491,1706197838485,-2000.0,0.0004,27]
[312757492,1706197838496,-245.402279,0.0004,15]
[312757493,1706197838506,-151.0,0.0004,2]
[312757494,1706197838516,-8991.327783,0.0004,2]
[312757495,1706197838525,-8991.327783,0.0004,2]
[312757496,1706197838533,-2000.0,0.0004001,27]
[312757497,1706197838542,-2104.047072,0.0004002,27]
[312757498,1706197838555,-167.15663199,0.00040209,9]
[312757499,1706197838567,-200.0,0.00040263,30]
[312757500,1706197838576,-376.0,0.00040263,30]
[312757501,1706197838586,-6306.1305397,0.00040294,7]
[312757502,1706197838596,-855.1756,0.000403,2]
[312757503,1706197838605,-163.08892,0.00040313,2]
[312757504,1706197838614,-216.099426,0.00040313,2]
[312757505,1706197838624,-5000.0,0.00040412,7]
[312757506,1706197838634,-157.894736,0.00040487,2]
[312757507,1706197838643,-151.0,0.00040597,2]
[312757508,1706197838652,-393.719375,0.00040597,2]
[312757509,1706197838661,-393.719375,0.00040597,2]
[312757510,1706197838670,-565.589382,0.00040597,2]
[312757511,1706197838680,-565.589382,0.00040597,2]
[312757512,1706197838689,-151.0,0.00040597,2]
[312757513,1706197838698,-831.24253,0.00040644,2]
[312757514,1706197838708,-831.24253,0.00040644,2]
[312757515,1706197838718,-424.69566342,0.00041,7]
[312757516,1706197838727,-1587.88956236,0.00041,2]
[312757517,1706197838736,-206.22779054,0.00041095,2]
[312757518,1706197838752,-163.08892,0.00041096,2]
[312757519,1706197838762,-216.099426,0.00041096,2]
[312757520,1706197838772,-157.894736,0.00041096,2]
[312757521,1706197838782,-169.98939872,0.000411,14]
[312757522,1706197838791,-169.98,0.000411,14]
[312757523,1706197838800,-151.10168775,0.000411,14]
[312757524,1706197838810,-151.10168775,0.000411,14]
[312757525,1706197838819,-151.10168775,0.000411,14]
[312757526,1706197838828,-151.10168775,0.000411,14]
[312757527,1706197838838,-151.10168775,0.000411,14]
[312757528,1706197838849,-151.10168775,0.000411,14]
[312757529,1706197838858,-151.10168775,0.000411,14]
[312757530,1706197838870,-151.10168775,0.000411,14]
[312757531,1706197838879,-151.1,0.000411,14]
[312757532,1706197838888,-620.00000001,0.00041197,15]
[312757533,1706197838897,-269.20480479,0.0004123,2]
[312757534,1706197838907,-2629.98881365,0.000418,30]
[312757535,1706197838916,-529.23785889,0.00042,30]
[312757536,1706197838925,-45310.0,0.00042,2]
[312757537,1706197838935,-156.03353982,0.00042287,30]
[312757538,1706197838945,-200.37141193,0.00042299,4]
[312757539,1706197838955,-151.956007,0.00042301,30]
[312757540,1706197838965,-1884.0,0.00042932,15]
[312757541,1706197838973,-151.956007,0.00042955,30]
[312757542,1706197838984,-450.000001,0.00043,120]
[312757543,1706197838997,-5499.99999807,0.00043,2]
[312757544,1706197839006,-151.956007,0.00043011,30]
[312757545,1706197839017,-151.97009506,0.00043098,30]
[312757546,1706197839027,-2000.0,0.0004318,90]
[312757547,1706197839037,-620.0,0.00043257,15]
[312757548,1706197839045,-3562.25694359,0.0004328,110]
[312757549,1706197839056,-165.6339,0.00043627,30]
[312757550,1706197839066,-2603.664834,0.00043627,30]
[312757551,1706197839075,-1647.685585,0.00043627,30]
[312757552,1706197839086,-249.609938,0.00043627,30]
[312757553,1706197839095,-384.669527,0.00043627,30]
[312757554,1706197839104,-1000.0,0.00043836,2]
[312757555,1706197839113,-1000.0,0.00043836,2]
[312757556,1706197839123,-1000.0,0.00043836,2]
[312757557,1706197839132,-1000.0,0.00043836,2]
[312757558,1706197839141,-1000.0,0.00043836,2]
[312757559,1706197839151,-1000.0,0.00043836,2]
[312757560,1706197839160,-335.058269,0.00043836,2]
[312757561,1706197839170,-139603.14028827,0.00044,2]
[312757562,1706197839179,-2000.0,0.00044,7]
[312757563,1706197839189,-2000.0,0.00044,7]
[312757564,1706197839198,-1639.3858064,0.00044,7]
[312757565,1706197839207,-150.0,0.00044,30]
[312757566,1706197839216,-549.999999,0.00044,2]
[312757567,1706197839225,-151.0,0.00044,7]
[312757568,1706197839235,-151.0,0.00044,7]
[312757569,1706197839246,-393.719375,0.00044,7]
[312757570,1706197839255,-393.719375,0.00044,7]
[312757571,1706197839268,-565.589382,0.00044,7]
[312757572,1706197839277,-565.589382,0.00044,7]
[312757573,1706197839286,-151.0,0.00044,7]
[312757574,1706197839296,-831.24253,0.00044,7]
[312757575,1706197839306,-831.24253,0.00044,7]
[312757576,1706197839316,-151.0,0.00044,7]
[312757577,1706197839325,-8991.327783,0.00044,7]
[312757578,1706197839334,-8991.327783,0.00044,7]
[312757579,1706197839344,-853.11973773,0.00044081,2]
[312757580,1706197839353,-2603.664834,0.00044172,30]
[312757581,1706197839362,-1647.685585,0.00044172,30]
[312757582,1706197839372,-249.609938,0.00044172,30]
[312757583,1706197839381,-384.669527,0.00044172,30]
[312757584,1706197839390,-2000.0,0.00044264,2]
[312757585,1706197839399,-1884.0,0.00044301,30]
[312757586,1706197839409,-151.956007,0.00044355,30]
[312757587,1706197839419,-319.69879374,0.0004459,4]
[312757588,1706197839428,-4478.45369047,0.00044591,4]
[312757589,1706197839438,-230.3899984,0.0004469,2]
[312757590,1706197839448,-245.03812436,0.00044695,4]
[312757591,1706197839458,-2147.50028627,0.00044696,4]
[312757592,1706197839467,-155.11023675,0.00044716,4]
[312757593,1706197839476,-2603.664834,0.00044717,30]
[312757594,1706197839485,-1647.685585,0.00044717,30]
[312757595,1706197839497,-249.609938,0.00044717,30]
[312757596,1706197839505,-384.669527,0.00044717,30]
[312757597,1706197839514,-273.04386351,0.000448,120]
[312757598,1706197839523,-155.32974409,0.00044803,4]
[312757599,1706197839533,-155.74648817,0.00044803,4]
[312757600,1706197839542,-1352.32690485,0.00044804,2]
[312757601,1706197839619,-154.99904511,0.00044815,4]
[312757602,1706197839629,-155.14456294,0.00044815,4]
[312757603,1706197839638,-155.0316447,0.00044815,4]
[312757604,1706197839647,-200.0,0.00044815,4]
[312757605,1706197839656,-274.15780869,0.00044815,4]
[312757606,1706197839667,-3126.02728391,0.00044815,4]
[312757607,1706197839676,-155.07502483,0.00044816,4]
[312757608,1706197839688,-4562.21209986,0.00044818,15]
[312757609,1706197839697,-5702.76512482,0.00044818,15]
[312757610,1706197839707,-1163.12647573,0.00044818,15]
[312757611,1706197839716,-18191.58670808,0.00044818,15]
[312757612,1706197839725,-3388.31734162,0.00044818,15]
[312757613,1706197839734,-156.59013274,0.00044818,15]
[312757614,1706197839745,-782.95066368,0.00044818,15]
[312757615,1706197839754,-3105.87076403,0.00044818,15]
[312757616,1706197839763,-621.17415281,0.00044818,15]
[312757617,1706197839772,-323.12672901,0.00044818,15]
[312757618,1706197839781,-403.90841126,0.00044818,15]
[312757619,1706197839790,-170.03688212,0.00044818,15]
[312757620,1706197839799,-348.59415299,0.00044818,15]
[312757621,1706197839808,-329.44853019,0.00044818,15]
[312757622,1706197839818,-7647.9975823,0.00044818,15]
[312757623,1706197839827,-243.52737521,0.00044818,15]
[312757624,1706197839837,-730.58212564,0.00044818,15]
[312757625,1706197839850,-346.12562758,0.00044818,15]
[312757626,1706197839861,-1284.42914201,0.00044818,15]
[312757627,1706197839871,-1318.07942078,0.00044818,15]
[312757628,1706197839880,-575.84559594,0.000449,120]
[312757629,1706197839890,-209.61775108,0.000449,4]
[312757630,1706197839899,-168.92690996,0.000449,4]
[312757632,1706197839908,-155.66950186,0.00044901,4]
[312757633,1706197839919,-154.98396787,0.00044953,4]
[312757634,1706197839928,-150.5,0.0004496,120]
[312757635,1706197839938,-450.0,0.0004496,120]
[312757636,1706197839947,-228.0,0.0004496,120]
[312757637,1706197839957,-172.74,0.0004497,120]
[312757638,1706197839967,-150.5,0.0004497,120]
[312757639,1706197839977,-450.0,0.0004497,120]
[312757640,1706197839986,-999.0,0.0004497,31]
[312757641,1706197839995,-150.5,0.0004497,120]
[312757643,1706197840004,-150.5,0.0004497,120]
[312757645,1706197840014,-150.5,0.0004497,120]
[312757646,1706197840023,-450.0,0.0004497,120]
[312757647,1706197840032,-228.0,0.0004497,120]
[312757649,1706197840041,-450.0,0.0004497,120]
[312757651,1706197840050,-228.0,0.0004497,120]
[312757653,1706197840059,-150.5,0.0004498,120]
[312757655,1706197840069,-150.5,0.0004498,120]
[312757656,1706197840078,-450.0,0.0004498,120]
[312757657,1706197840087,-999.0,0.0004498,31]
[312757659,1706197840096,-150.5,0.0004498,120]
[312757660,1706197840106,-150.5,0.0004498,120]
[312757662,1706197840115,-150.5,0.0004498,120]
[312757664,1706197840124,-228.0,0.0004498,120]
[312757666,1706197840133,-450.0,0.0004498,120]
[312757668,1706197840142,-450.0,0.0004498,120]
[312757670,1706197840151,-228.0,0.0004498,120]
[312757672,1706197840160,-150.5,0.0004499,120]
[312757673,1706197840169,-150.5,0.0004499,120]
[312757675,1706197840178,-450.0,0.0004499,120]
[312757677,1706197840187,-277.12,0.0004499,120]
[312757679,1706197840196,-999.0,0.0004499,31]
[312757681,1706197840206,-150.5,0.0004499,120]
[312757684,1706197840216,-1384.98174548,0.00044999,4]
[312757685,1706197840226,-261.39580651,0.00045,4]
[312757688,1706197840235,-807.299392,0.00045,7]
[312757690,1706197840245,-807.299392,0.00045,7]
[312757691,1706197840255,-251.91604931,0.00045,4]
[312757693,1706197840266,-808.8597809,0.00045,20]
[312757696,1706197840277,-2769.8397898,0.00045,30]
[312757698,1706197840286,-402.64562246,0.00045,30]
[312757700,1706197840295,-500000.0,0.00045,2]
[312757701,1706197840305,-500000.0,0.00045,3]
[312757703,1706197840316,-109382.03534393,0.00045,7]
[312757758,1706197840833,-571.1015789,0.00023037,2]
[312757759,1706197840868,-107.93147033,0.00023037,2]
[312757761,1706197840877,-1198.61763963,0.00023037,2]
[312757762,1706197840887,-500.0,0.00031685,4]
[312757763,1706197840897,-19293.99999999,0.00031686,14]
[312757765,1706197840906,-5097.27233493,0.0003179,3]
[312757767,1706197840918,-5923.97766507,0.0003179,3]
[312757769,1706197840927,-91261.76100755,0.00045,7]
[312757779,1706197841010,-788.15000025,0.00045,7]
[312757795,1706197841203,-400.0,0.00035,2]
[312757796,1706197841212,-76767.53746365,0.00045,7]
[312757798,1706197841223,-69926.63473893,0.00045,7]
[312757800,1706197841234,-50023.76128661,0.00045,7]
[312757938,1706197846228,-3970.33105698,0.00028916,2]
[312757940,1706197846237,-3996.00567181,0.00037999,4]